fUSD/lending_fUSD_20260625
["ID","MTS","AMOUNT","RATE_DAILY","PERIOD"]
[426410401,1782355862000,-310.954263,0.00031507,7]
[426410399,1782355862000,-310.954263,0.00031507,7]
[426410396,1782355862000,-310.954263,0.00031507,7]
[426410397,1782355862000,-310.954263,0.00031507,7]
[426410400,1782355862000,-151.0,0.00031507,7]
[426410406,1782355862000,-310.954263,0.00031507,7]
[426410382,1782355862000,-151.0,0.00031507,7]
[426410379,1782355862000,-151.0,0.00031507,7]
[426410348,1782355862000,-151.0,0.00031507,7]
[426410373,1782355862000,-803.376764,0.00031507,7]
[426410404,1782355862000,-151.571055,0.00031507,7]
[426410345,1782355862000,-151.0,0.00031507,7]
[426410353,1782355862000,-151.0,0.00031507,7]
[426410350,1782355862000,-151.0,0.00031507,7]
[426410352,1782355862000,-151.0,0.00031507,7]
[426410354,1782355862000,-151.0,0.00031507,7]
[426410349,1782355862000,-151.0,0.00031507,7]
[426410351,1782355862000,-151.0,0.00031507,7]
[426410346,1782355862000,-151.0,0.00031507,7]
[426410347,1782355862000,-151.0,0.00031507,7]
[426410355,1782355862000,-151.0,0.00031507,7]
[426410359,1782355862000,-803.376764,0.00031507,7]
[426410360,1782355862000,-803.376764,0.00031507,7]
[426410370,1782355862000,-803.376764,0.00031507,7]
[426410357,1782355862000,-803.376764,0.00031507,7]
[426410365,1782355862000,-803.376764,0.00031507,7]
[426410363,1782355862000,-803.376764,0.00031507,7]
[426410362,1782355862000,-803.376764,0.00031507,7]
[426410358,1782355862000,-803.376764,0.00031507,7]
[426410364,1782355862000,-803.376764,0.00031507,7]
[426410368,1782355862000,-803.376764,0.00031507,7]
[426410356,1782355862000,-225.761338,0.00031507,7]
[426410367,1782355862000,-803.376764,0.00031507,7]
[426410366,1782355862000,-803.376764,0.00031507,7]
[426410377,1782355862000,-151.0,0.00031507,7]
[426410381,1782355862000,-151.0,0.00031507,7]
[426410376,1782355862000,-803.376762,0.00031507,7]
[426410369,1782355862000,-803.376764,0.00031507,7]
[426410361,1782355862000,-803.376764,0.00031507,7]
[426410405,1782355862000,-310.954263,0.00031507,7]
[426410433,1782355862000,-206.826457,0.00031507,7]
[426410408,1782355862000,-310.954263,0.00031507,7]
[426410444,1782355862000,-151.0,0.00031507,7]
[426410437,1782355862000,-151.0,0.00031507,7]
[426410441,1782355862000,-291.141732,0.00031507,7]
[426410438,1782355862000,-291.141732,0.00031507,7]
[426410447,1782355862000,-151.0,0.00031507,7]
[426410455,1782355862000,-151.0,0.00031507,7]
[426410451,1782355862000,-206.495902,0.00031507,7]
[426410456,1782355862000,-291.141732,0.00031507,7]
[426410454,1782355862000,-291.141732,0.00031507,7]
[426410446,1782355862000,-291.141732,0.00031507,7]
[426410445,1782355862000,-151.0,0.00031507,7]
[426410448,1782355862000,-151.0,0.00031507,7]
[426410449,1782355862000,-151.0,0.00031507,7]
[426410443,1782355862000,-151.0,0.00031507,7]
[426410450,1782355862000,-291.141732,0.00031507,7]
[426410453,1782355862000,-151.0,0.00031507,7]
[426410457,1782355862000,-151.0,0.00031507,7]
[426410465,1782355862000,-291.141732,0.00031507,7]
[426410463,1782355862000,-211.785633,0.00031507,7]
[426410464,1782355862000,-151.0,0.00031507,7]
[426410458,1782355862000,-151.0,0.00031507,7]
[426410460,1782355862000,-291.141732,0.00031507,7]
[426410461,1782355862000,-151.0,0.00031507,7]
[426410462,1782355862000,-291.141732,0.00031507,7]
[426410466,1782355862000,-151.0,0.00031507,7]
[426410459,1782355862000,-291.141732,0.00031507,7]
[426410467,1782355862000,-151.0,0.00031507,7]
[426410403,1782355862000,-310.954263,0.00031507,7]
[426410452,1782355862000,-291.141732,0.00031507,7]
[426410442,1782355862000,-151.0,0.00031507,7]
[426410468,1782355862000,-291.141732,0.00031507,7]
[426410469,1782355862000,-151.0,0.00031507,7]
[426410411,1782355862000,-151.0,0.00031507,7]
[426410416,1782355862000,-310.954263,0.00031507,7]
[426410421,1782355862000,-151.0,0.00031507,7]
[426410418,1782355862000,-310.954259,0.00031507,7]
[426410413,1782355862000,-151.0,0.00031507,7]
[426410412,1782355862000,-310.954263,0.00031507,7]
[426410417,1782355862000,-151.0,0.00031507,7]
[426410410,1782355862000,-310.954263,0.00031507,7]
[426410440,1782355862000,-291.141732,0.00031507,7]
[426410409,1782355862000,-310.954263,0.00031507,7]
[426410414,1782355862000,-151.0,0.00031507,7]
[426410420,1782355862000,-151.0,0.00031507,7]
[426410419,1782355862000,-151.0,0.00031507,7]
[426410423,1782355862000,-151.0,0.00031507,7]
[426410415,1782355862000,-310.954263,0.00031507,7]
[426410425,1782355862000,-151.0,0.00031507,7]
[426410434,1782355862000,-151.0,0.00031507,7]
[426410426,1782355862000,-151.0,0.00031507,7]
[426410439,1782355862000,-151.0,0.00031507,7]
[426410436,1782355862000,-291.141732,0.00031507,7]
[426410431,1782355862000,-151.0,0.00031507,7]
[426410428,1782355862000,-151.0,0.00031507,7]
[426410435,1782355862000,-151.0,0.00031507,7]
[426410430,1782355862000,-151.0,0.00031507,7]
[426410429,1782355862000,-254.000417,0.00031507,7]
[426410432,1782355862000,-151.0,0.00031507,7]
[426410424,1782355862000,-151.0,0.00031507,7]
[426410422,1782355862000,-151.0,0.00031507,7]
[426410427,1782355862000,-151.0,0.00031507,7]
[426410503,1782355863000,-161.559212,0.00031507,7]
[426410509,1782355863000,-882.380495,0.00031507,7]
[426410511,1782355863000,-882.380495,0.00031507,7]
[426410513,1782355863000,-2254.543419,0.00031507,7]
[426410504,1782355863000,-882.380495,0.00031507,7]
[426410493,1782355863000,-151.0,0.00031507,7]
[426410506,1782355863000,-882.380495,0.00031507,7]
[426410512,1782355863000,-882.380495,0.00031507,7]
[426410507,1782355863000,-882.380495,0.00031507,7]
[426410508,1782355863000,-882.380495,0.00031507,7]
[426410505,1782355863000,-882.380495,0.00031507,7]
[426410510,1782355863000,-882.380495,0.00031507,7]
[426410524,1782355863000,-2254.543419,0.00031507,7]
[426410516,1782355863000,-2254.543419,0.00031507,7]
[426410514,1782355863000,-178.366787,0.00031507,7]
[426410527,1782355863000,-2254.543419,0.00031507,7]
[426410515,1782355863000,-2254.543419,0.00031507,7]
[426410526,1782355863000,-151.0,0.00031507,7]
[426410525,1782355863000,-211.495819,0.00031507,7]
[426410522,1782355863000,-2254.543419,0.00031507,7]
[426410521,1782355863000,-151.0,0.00031507,7]
[426410517,1782355863000,-882.380495,0.00031507,7]
[426410520,1782355863000,-882.380495,0.00031507,7]
[426410518,1782355863000,-882.380495,0.00031507,7]
[426410523,1782355863000,-151.0,0.00031507,7]
[426410499,1782355863000,-161.559212,0.00031507,7]
[426410519,1782355863000,-2254.543419,0.00031507,7]
[426410500,1782355863000,-161.559212,0.00031507,7]
[426410485,1782355863000,-151.0,0.00031507,7]
[426410497,1782355863000,-161.559212,0.00031507,7]
[426410535,1782355863000,-2254.543419,0.00031507,7]
[426410471,1782355863000,-151.0,0.00031507,7]
[426410474,1782355863000,-151.0,0.00031507,7]
[426410476,1782355863000,-151.0,0.00031507,7]
[426410470,1782355863000,-294.080741,0.00031507,7]
[426410475,1782355863000,-291.141732,0.00031507,7]
[426410479,1782355863000,-161.559212,0.00031507,7]
[426410472,1782355863000,-291.141732,0.00031507,7]
[426410473,1782355863000,-151.0,0.00031507,7]
[426410478,1782355863000,-299.604823,0.00031507,7]
[426410491,1782355863000,-151.0,0.00031507,7]
[426410482,1782355863000,-161.559212,0.00031507,7]
[426410490,1782355863000,-161.559212,0.00031507,7]
[426410484,1782355863000,-161.559212,0.00031507,7]
[426410480,1782355863000,-151.0,0.00031507,7]
[426410489,1782355863000,-151.0,0.00031507,7]
[426410483,1782355863000,-151.0,0.00031507,7]
[426410481,1782355863000,-151.0,0.00031507,7]
[426410487,1782355863000,-151.0,0.00031507,7]
[426410488,1782355863000,-161.559212,0.00031507,7]
[426410486,1782355863000,-161.559212,0.00031507,7]
[426410492,1782355863000,-161.559212,0.00031507,7]
[426410494,1782355863000,-161.559212,0.00031507,7]
[426410496,1782355863000,-161.559212,0.00031507,7]
[426410498,1782355863000,-161.559212,0.00031507,7]
[426410502,1782355863000,-161.559212,0.00031507,7]
[426410501,1782355863000,-161.559212,0.00031507,7]
[426410495,1782355863000,-171.188768,0.00031507,7]
[426410528,1782355863000,-151.0,0.00031507,7]
[426410477,1782355863000,-217.154778,0.00031507,7]
[426410532,1782355863000,-151.0,0.00031507,7]
[426410556,1782355863000,-151.0,0.00031507,7]
[426410559,1782355863000,-155.971628,0.00031507,7]
[426410561,1782355863000,-155.971628,0.00031507,7]
[426410563,1782355863000,-151.0,0.00031507,7]
[426410567,1782355863000,-155.66776297,0.00031507,60]
[426410569,1782355863000,-500.0,0.00031507,3]
[426410570,1782355863000,-699.20805397,0.00031507,30]
[426410578,1782355863000,-150.0,0.00031507,2]
[426410574,1782355863000,-500.0,0.00031507,3]
[426410572,1782355863000,-500.0,0.00031507,3]
[426410573,1782355863000,-500.0,0.00031507,3]
[426410571,1782355863000,-500.0,0.00031507,3]
[426410568,1782355863000,-500.0,0.00031507,3]
[426410575,1782355863000,-5458.77854756,0.00031507,30]
[426410576,1782355863000,-459.44452411,0.00031507,30]
[426410581,1782355863000,-500.0,0.00031507,60]
[426410586,1782355863000,-2110.0,0.00031507,2]
[426410587,1782355863000,-2213.95,0.00031507,14]
[426410580,1782355863000,-502.16,0.00031507,14]
[426410589,1782355863000,-200.0,0.00031532,2]
[426410584,1782355863000,-249.0,0.00031507,3]
[426410582,1782355863000,-500.0,0.00031507,60]
[426410579,1782355863000,-203.628,0.00031507,2]
[426410585,1782355863000,-187.35433,0.00031507,3]
[426410583,1782355863000,-517.5328518,0.00031507,60]
[426410588,1782355863000,-200.0,0.00031507,2]
[426410530,1782355863000,-151.0,0.00031507,7]
[426410565,1782355863000,-546.23024616,0.00031507,30]
[426410558,1782355863000,-151.0,0.00031507,7]
[426410577,1782355863000,-500.0,0.00031507,3]
[426410560,1782355863000,-151.0,0.00031507,7]
[426410531,1782355863000,-2254.543419,0.00031507,7]
[426410554,1782355863000,-151.0,0.00031507,7]
[426410539,1782355863000,-151.0,0.00031507,7]
[426410541,1782355863000,-155.971628,0.00031507,7]
[426410534,1782355863000,-268.675606,0.00031507,7]
[426410529,1782355863000,-2254.543419,0.00031507,7]
[426410540,1782355863000,-155.971628,0.00031507,7]
[426410533,1782355863000,-2254.543419,0.00031507,7]
[426410538,1782355863000,-151.0,0.00031507,7]
[426410536,1782355863000,-151.0,0.00031507,7]
[426410542,1782355863000,-155.971628,0.00031507,7]
[426410549,1782355863000,-155.971628,0.00031507,7]
[426410551,1782355863000,-155.971628,0.00031507,7]
[426410546,1782355863000,-1791.060299,0.00031507,7]
[426410537,1782355863000,-2254.543419,0.00031507,7]
[426410557,1782355863000,-1791.060299,0.00031507,7]
[426410543,1782355863000,-1791.060299,0.00031507,7]
[426410564,1782355863000,-204.887786,0.00031507,7]
[426410566,1782355863000,-177.56,0.00031507,2]
[426410555,1782355863000,-1791.060299,0.00031507,7]
[426410548,1782355863000,-151.0,0.00031507,7]
[426410544,1782355863000,-1791.060299,0.00031507,7]
[426410553,1782355863000,-1791.060299,0.00031507,7]
[426410545,1782355863000,-151.0,0.00031507,7]
[426410547,1782355863000,-155.971628,0.00031507,7]
[426410552,1782355863000,-151.0,0.00031507,7]
[426410550,1782355863000,-151.0,0.00031507,7]
[426410562,1782355863000,-151.0,0.00031507,7]
[426410629,1782355864000,-1597.25789383,0.00031959,2]
[426410635,1782355864000,-350.7406,0.00032,2]
[426410633,1782355864000,-35074.0626,0.00032,2]
[426410640,1782355864000,-1907.6515,0.00032,20]
[426410630,1782355864000,-633.47703345,0.00031963,30]
[426410623,1782355864000,-1425.45,0.0003188,30]
[426410626,1782355864000,-175.15143323,0.00031913,30]
[426410624,1782355864000,-1736.23,0.0003188,2]
[426410628,1782355864000,-1034.59967134,0.00031956,30]
[426410625,1782355864000,-462.1,0.000319,120]
[426410634,1782355864000,-800.0,0.00032,5]
[426410627,1782355864000,-1000.0,0.00031927,7]
[426410632,1782355864000,-800.0,0.00032,5]
[426410649,1782355864000,-1789.506,0.00032,30]
[426410637,1782355864000,-20055.69856021,0.00032,12]
[426410639,1782355864000,-1737.1016,0.00032,20]
[426410638,1782355864000,-1028.2189,0.00032,20]
[426410636,1782355864000,-1769.99681069,0.00032,2]
[426410643,1782355864000,-1403.596,0.00032,10]
[426410641,1782355864000,-561.3442,0.00032,20]
[426410651,1782355864000,-1545.0467,0.00032,20]
[426410647,1782355864000,-1789.5,0.00032,30]
[426410652,1782355864000,-1789.506,0.00032,20]
[426410642,1782355864000,-1907.6515,0.00032,30]
[426410645,1782355864000,-1789.506,0.00032,30]
[426410648,1782355864000,-1789.506,0.00032,20]
[426410620,1782355864000,-200.0,0.00031822,2]
[426410631,1782355864000,-800.0,0.00032,5]
[426410622,1782355864000,-500.9281581,0.00031863,30]
[426410595,1782355864000,-404.68,0.000316,2]
[426410618,1782355864000,-150.22821583,0.00031737,2]
[426410591,1782355864000,-1277.0,0.00031549,2]
[426410650,1782355864000,-1789.5,0.00032,10]
[426410594,1782355864000,-6084.0,0.00031549,2]
[426410590,1782355864000,-1361.0,0.00031549,2]
[426410592,1782355864000,-1230.0,0.00031549,2]
[426410597,1782355864000,-537.58,0.000316,7]
[426410593,1782355864000,-216.0,0.00031549,2]
[426410599,1782355864000,-534.13,0.000316,2]
[426410600,1782355864000,-534.13,0.000316,2]
[426410598,1782355864000,-534.33,0.000316,2]
[426410596,1782355864000,-159.36,0.000316,7]
[426410601,1782355864000,-534.13,0.000316,2]
[426410602,1782355864000,-534.13,0.000316,2]
[426410603,1782355864000,-534.14,0.000316,2]
[426410613,1782355864000,-251.0,0.0003168,2]
[426410615,1782355864000,-306.0,0.00031715,30]
[426410614,1782355864000,-637.90665303,0.00031712,7]
[426410605,1782355864000,-211.23710555,0.00031614,14]
[426410606,1782355864000,-1614.0,0.00031623,7]
[426410604,1782355864000,-300.0,0.000316,10]
[426410607,1782355864000,-4768.0,0.00031627,10]
[426410611,1782355864000,-251.0,0.0003168,2]
[426410610,1782355864000,-251.0,0.0003168,2]
[426410612,1782355864000,-251.0,0.0003168,2]
[426410608,1782355864000,-611.0,0.00031628,5]
[426410609,1782355864000,-251.0,0.0003168,2]
[426410616,1782355864000,-1000.0,0.00031717,7]
[426410617,1782355864000,-200.0,0.00031721,2]
[426410621,1782355864000,-200.0,0.00031848,2]
[426410619,1782355864000,-5297.55146797,0.00031817,30]
[426410646,1782355864000,-1789.506,0.00032,10]
[426410660,1782355864000,-800.0,0.00032,5]
[426410654,1782355864000,-1789.5,0.00032,30]
[426410686,1782355864000,-194.064624,0.00032,7]
[426410687,1782355864000,-188.568632,0.00032,7]
[426410683,1782355864000,-151.0,0.00032,7]
[426410691,1782355864000,-2110.0,0.00032007,2]
[426410688,1782355864000,-151.0,0.00032,7]
[426410694,1782355864000,-251.0,0.0003201,2]
[426410705,1782355864000,-251.0,0.0003234,2]
[426410702,1782355864000,-913.71277096,0.000323,2]
[426410703,1782355864000,-153.91318704,0.00032328,2]
[426410693,1782355864000,-251.0,0.0003201,2]
[426410704,1782355864000,-251.0,0.0003234,2]
[426410701,1782355864000,-611.0,0.00032148,6]
[426410696,1782355864000,-200.0,0.0003207,2]
[426410685,1782355864000,-151.0,0.00032,7]
[426410695,1782355864000,-251.0,0.0003201,2]
[426410697,1782355864000,-152.0,0.00032098,6]
[426410698,1782355864000,-150.0,0.00032116,30]
[426410699,1782355864000,-1000.0,0.00032138,7]
[426410707,1782355864000,-1000.0,0.00032349,7]
[426410644,1782355864000,-1403.59,0.00032,30]
[426410713,1782355864000,-800.0,0.000325,5]
[426410708,1782355864000,-350.0,0.00032397,6]
[426410706,1782355864000,-251.0,0.0003234,2]
[426410714,1782355864000,-800.0,0.000325,5]
[426410715,1782355864000,-800.0,0.000325,5]
[426410711,1782355864000,-150.0,0.00032421,2]
[426410709,1782355864000,-159.36,0.000324,7]
[426410712,1782355864000,-200.0,0.00032462,2]
[426410700,1782355864000,-200.0,0.0003214,2]
[426410684,1782355864000,-194.064631,0.00032,7]
[426410710,1782355864000,-537.58,0.000324,7]
[426410681,1782355864000,-194.064631,0.00032,7]
[426410692,1782355864000,-251.0,0.0003201,2]
[426410665,1782355864000,-151.0,0.00032,7]
[426410655,1782355864000,-17995.9121,0.00032,10]
[426410664,1782355864000,-72177.0,0.00032,120]
[426410656,1782355864000,-2387.082,0.00032,20]
[426410653,1782355864000,-1789.506,0.00032,30]
[426410662,1782355864000,-700.0,0.00032,2]
[426410663,1782355864000,-873152.0,0.00032,20]
[426410658,1782355864000,-2387.08,0.00032,20]
[426410659,1782355864000,-25000.0,0.00032,30]
[426410661,1782355864000,-400.96846081,0.00032,2]
[426410669,1782355864000,-151.0,0.00032,7]
[426410672,1782355864000,-151.0,0.00032,7]
[426410668,1782355864000,-151.0,0.00032,7]
[426410657,1782355864000,-2387.082,0.00032,20]
[426410671,1782355864000,-151.0,0.00032,7]
[426410690,1782355864000,-181.172778,0.00032,7]
[426410666,1782355864000,-151.0,0.00032,7]
[426410680,1782355864000,-265.202195,0.00032,7]
[426410682,1782355864000,-194.064631,0.00032,7]
[426410676,1782355864000,-151.0,0.00032,7]
[426410677,1782355864000,-151.0,0.00032,7]
[426410689,1782355864000,-151.0,0.00032,7]
[426410674,1782355864000,-151.0,0.00032,7]
[426410667,1782355864000,-160.0,0.00032,120]
[426410673,1782355864000,-151.0,0.00032,7]
[426410670,1782355864000,-151.0,0.00032,7]
[426410679,1782355864000,-151.0,0.00032,7]
[426410678,1782355864000,-151.0,0.00032,7]
[426410675,1782355864000,-151.0,0.00032,7]
[426410738,1782355865000,-151.0,0.00032877,7]
[426410743,1782355865000,-373.2498082,0.00032877,2]
[426410739,1782355865000,-151.0,0.00032877,7]
[426410742,1782355865000,-186.6249041,0.00032877,2]
[426410752,1782355865000,-500.02255219,0.00032877,2]
[426410741,1782355865000,-151.0,0.00032877,7]
[426410745,1782355865000,-746.4996164,0.00032877,2]
[426410748,1782355865000,-500.0,0.00032877,2]
[426410746,1782355865000,-500.0,0.00032877,2]
[426410756,1782355865000,-350.0,0.00032959,6]
[426410751,1782355865000,-436.81788663,0.00032877,2]
[426410749,1782355865000,-500.0,0.00032877,2]
[426410744,1782355865000,-559.8747123,0.00032877,2]
[426410750,1782355865000,-500.0,0.00032877,2]
[426410755,1782355865000,-5000.0,0.00032903,30]
[426410757,1782355865000,-151.0,0.0003296,7]
[426410753,1782355865000,-400.0,0.000329,30]
[426410762,1782355865000,-151.0,0.0003296,7]
[426410737,1782355865000,-151.0,0.00032877,7]
[426410747,1782355865000,-500.0,0.00032877,2]
[426410736,1782355865000,-151.0,0.00032877,7]
[426410728,1782355865000,-306.0,0.00032715,30]
[426410734,1782355865000,-153.000251,0.00032877,7]
[426410716,1782355865000,-800.0,0.000325,5]
[426410717,1782355865000,-2000.0,0.000325,7]
[426410718,1782355865000,-200.0,0.00032503,4]
[426410726,1782355865000,-251.0,0.0003267,2]
[426410720,1782355865000,-350.0,0.00032512,6]
[426410724,1782355865000,-150.0,0.00032603,2]
[426410725,1782355865000,-611.0,0.00032668,6]
[426410723,1782355865000,-2213.95,0.00032591,14]
[426410719,1782355865000,-1795.28,0.00032507,2]
[426410721,1782355865000,-1000.0,0.0003256,7]
[426410760,1782355865000,-478.099977,0.0003296,7]
[426410722,1782355865000,-633.47703345,0.00032572,30]
[426410727,1782355865000,-251.0,0.0003267,2]
[426410740,1782355865000,-151.0,0.00032877,7]
[426410729,1782355865000,-1000.0,0.0003277,7]
[426410730,1782355865000,-186.98,0.00032774,30]
[426410735,1782355865000,-944.33,0.00032877,2]
[426410733,1782355865000,-352.08,0.00032877,2]
[426410732,1782355865000,-727.86,0.00032837,30]
[426410731,1782355865000,-200.0,0.0003282,2]
[426410754,1782355865000,-462.1,0.000329,120]
[426410794,1782355865000,-155.971628,0.0003296,7]
[426410763,1782355865000,-151.0,0.0003296,7]
[426410778,1782355865000,-161.559205,0.0003296,7]
[426410787,1782355865000,-151.0,0.0003296,7]
[426410784,1782355865000,-2254.543419,0.0003296,7]
[426410790,1782355865000,-253.62339,0.0003296,7]
[426410792,1782355865000,-1791.060299,0.0003296,7]
[426410791,1782355865000,-155.971628,0.0003296,7]
[426410793,1782355865000,-151.0,0.0003296,7]
[426410789,1782355865000,-2254.543419,0.0003296,7]
[426410796,1782355865000,-1791.060299,0.0003296,7]
[426410795,1782355865000,-151.0,0.0003296,7]
[426410797,1782355865000,-452615.32148552,0.0003296,20]
[426410799,1782355865000,-155.971628,0.00031507,7]
[426410798,1782355865000,-1791.060299,0.00031507,7]
[426410802,1782355865000,-311.0,0.00012087,2]
[426410800,1782355865000,-9855.43228171,0.0003296,20]
[426410801,1782355865000,-4506.47361676,0.0003296,20]
[426410803,1782355865000,-32573.19848489,0.0003296,20]
[426410758,1782355865000,-478.099977,0.0003296,7]
[426410805,1782355865000,-157.0,0.000315,4]
[426410785,1782355865000,-882.380495,0.0003296,7]
[426410783,1782355865000,-882.380495,0.0003296,7]
[426410804,1782355865000,-14976.96952,0.0003296,20]
[426410788,1782355865000,-2254.543419,0.0003296,7]
[426410782,1782355865000,-882.380495,0.0003296,7]
[426410759,1782355865000,-478.099977,0.0003296,7]
[426410761,1782355865000,-478.099981,0.0003296,7]
[426410770,1782355865000,-151.0,0.0003296,7]
[426410765,1782355865000,-151.0,0.0003296,7]
[426410775,1782355865000,-151.0,0.0003296,7]
[426410772,1782355865000,-151.0,0.0003296,7]
[426410766,1782355865000,-162.671361,0.0003296,7]
[426410773,1782355865000,-151.0,0.0003296,7]
[426410774,1782355865000,-161.559212,0.0003296,7]
[426410769,1782355865000,-291.141732,0.0003296,7]
[426410768,1782355865000,-151.0,0.0003296,7]
[426410771,1782355865000,-291.141734,0.0003296,7]
[426410767,1782355865000,-291.141732,0.0003296,7]
[426410776,1782355865000,-161.559212,0.0003296,7]
[426410779,1782355865000,-151.0,0.0003296,7]
[426410780,1782355865000,-151.0,0.0003296,7]
[426410777,1782355865000,-161.559212,0.0003296,7]
[426410786,1782355865000,-2254.543419,0.0003296,7]
[426410781,1782355865000,-882.380495,0.0003296,7]
[426410764,1782355865000,-291.141732,0.0003296,7]
[426410807,1782355866000,-49.52657192,0.0003296,20]
[426410806,1782355866000,-151.0,0.00031507,7]
[426410808,1782355866000,-500.0,0.0003296,20]
[426410811,1782355867000,1000.0,0.00028549,120]
[426410809,1782355867000,1000.0,0.00028549,120]
[426410810,1782355867000,1000.0,0.00028549,120]
[426410812,1782355867000,1000.0,0.00028549,120]
[426410813,1782355867000,1000.0,0.00028549,120]
[426410816,1782355867000,1000.0,0.00028549,120]
[426410815,1782355867000,1000.0,0.00028549,120]
[426410814,1782355867000,1000.0,0.00028549,120]
[426410818,1782355867000,1000.0,0.00028549,120]
[426410821,1782355867000,1000.0,0.00028549,120]
[426410819,1782355867000,1000.0,0.00028549,120]
[426410820,1782355867000,1000.0,0.00028549,120]
[426410823,1782355867000,1000.0,0.00028549,120]
[426410822,1782355867000,1000.0,0.00028549,120]
[426410824,1782355867000,1000.0,0.00028549,120]
[426410825,1782355867000,1000.0,0.00028549,120]
[426410826,1782355867000,1000.0,0.00028549,120]
[426410827,1782355867000,1000.0,0.00028549,120]
[426410828,1782355867000,1000.0,0.00028549,120]
[426410817,1782355867000,1000.0,0.00028549,120]
[426410829,1782355868000,1000.0,0.00028549,120]
[426410830,1782355868000,1000.0,0.00028549,120]
[426410831,1782355868000,1000.0,0.00028549,120]
[426410832,1782355868000,1000.0,0.00028549,120]
[426410833,1782355868000,1000.0,0.00028549,120]
[426410834,1782355868000,1000.0,0.00028549,120]
[426410839,1782355868000,1000.0,0.00028549,120]
[426410835,1782355868000,1000.0,0.00028549,120]
[426410837,1782355868000,1000.0,0.00028549,120]
[426410838,1782355868000,1000.0,0.00028549,120]
[426410841,1782355868000,1000.0,0.00028549,120]
[426410840,1782355868000,1000.0,0.00028549,120]
[426410842,1782355868000,1000.0,0.00028549,120]
[426410836,1782355868000,1000.0,0.00028549,120]
[426410844,1782355883000,536.65834729,0.00029863,60]
[426410843,1782355883000,513.71464031,0.00029863,60]
[426410848,1782355913000,500.0,0.00030136,120]
[426410849,1782355914000,500.0,0.00030136,120]
[426410850,1782355914000,500.0,0.00030136,120]
[426410851,1782355914000,500.0,0.00030136,120]
[426410873,1782356080000,6420.63038909,8e-05,2]
[426410874,1782356084000,244.0,0.00028751,30]
[426410875,1782356085000,244.0,0.00029751,30]
[426410876,1782356087000,244.0,0.00030751,30]
[426410886,1782356227000,165.58,0.0002973,120]
[426410887,1782356240000,200.0,0.00030507,30]
[426410888,1782356241000,200.0,0.00030507,30]
[426410890,1782356242000,309.0,0.00030507,30]
[426410889,1782356242000,200.0,0.00030507,30]
[426410891,1782356266000,12943.008643,9.04e-05,2]
[426410893,1782356377000,152.43,0.00030351,30]
[426410894,1782356378000,152.43,0.00027397,30]
[426410895,1782356380000,517.5328518,0.00031316,60]
[426410896,1782356381000,155.57,0.00029931,30]
[426410897,1782356386000,500.0,0.00031316,60]
[426410898,1782356387000,500.0,0.00031316,60]
[426410900,1782356454000,500.8996607,0.00030136,120]
[426410905,1782356464000,172.06290735,0.0001,2]